Cogmind - Beta 17.1 @@@ ROGUE MODE // 2026.09.02 @ 14:55:11 Player: TheSkyeDoctor Result: Destroyed by Y-45 Defender with Beam Rifle Performance ------------- Evolutions (1) 500 Regions Visited (3) 600 Robots Destroyed (30) 150 Value Destroyed (703) 703 Prototype IDs (1) 20 Alien Tech Used (0) 0 Bonus (0) 0 TOTAL SCORE: 1973 Bonus ------- None Cogmind --------- Core Integrity 0/400 Matter 192/300 Energy 100/100 System Corruption 0% Temperature Cool (9) Movement Rolling (115) Ox1 Location -9/Materials Parts ------- > --- POWER (1) -------- (None) > --- PROPULSION (2) --- Compact Wheel Compact Wheel > --- UTILITY (4) ------ High-capacity Storage Unit > --- WEAPON (2) ------- Grenade Launcher > --- INVENTORY (20) --- High-capacity Matter Pod (200) Improved Terrain Scanner Rocket Launcher Datajack Peak State ------------ > --- POWER ------------ Ion Engine > --- PROPULSION ------- Light Treads Light Treads > --- UTILITY ---------- Small Storage Unit Seismic Detector > --- WEAPON ----------- EM Pulse Gun Improved Medium Laser > --- INVENTORY -------- Ion Engine High-capacity Matter Pod Improved Terrain Scanner Hardened Light Armor Plating Hardened Light Armor Plating EM Pulse Gun EM Pulse Gun Grenade Launcher [Rating: 10] Favorites ----------- Power Ion Engine Engine Ion Engine Propulsion Light Treads Treads Light Treads Wheel Compact Wheel Utility Seismic Detector Device Seismic Detector Storage High-capacity Storage Unit Protection Hardened Light Armor Plating Weapon EM Pulse Gun Energy Gun EM Pulse Gun Ballistic Gun Heavy Assault Rifle Launcher Grenade Launcher Impact Weapon Hammer Build | -11 -10 -10 -9 ------- Run | Yrd Mat Min Mat Slots Evolved 2 | . . . 2 Power . | . . . . Propulsion . | . . . . Utility 2 | . . . 2 Weapon . | . . . . Parts Attached 26 | 9 5 2 10 Power 3 | 2 1 . . Engine 3 | 2 1 . . Core . | . . . . Reactor . | . . . . Propulsion 6 | 2 . . 4 Treads 2 | 2 . . . Leg . | . . . . Wheel 4 | . . . 4 Hover . | . . . . Flight . | . . . . Utility 8 | 3 1 2 2 Device 4 | 2 . . 2 Storage 2 | 1 1 . . Processor . | . . . . Hackware . | . . . . Protection 2 | . . 2 . Artifact . | . . . . Weapon 9 | 2 3 . 4 Energy Gun 5 | 2 2 . 1 Energy Cannon . | . . . . Ballistic Gun 1 | . . . 1 Ballistic Cannon . | . . . . Launcher 2 | . . . 2 Special Weapon . | . . . . Impact Weapon 1 | . 1 . . Slashing Weapon . | . . . . Piercing Weapon . | . . . . Special Melee Weapon . | . . . . Unidentified Prototypes 1 | . 1 . . Parts Lost 15 | . 2 7 6 Power 2 | . 1 1 . Propulsion 4 | . . 2 2 Utility 3 | . . 2 1 Weapon 6 | . 1 2 3 Highest Loss Streak 7 | . 1 7 4 To Critical Strikes . | . . . . Average Backups 6 | 1 6 7 5 Power . | . . . . Propulsion . | . . . 1 Utility 3 | . 3 4 2 Weapon 2 | . 2 2 1 Tool/Special . | . . . . Unused Backups 5 | . . 1 4 Power . | . . . . Propulsion . | . . . . Utility 3 | . . 1 2 Weapon 1 | . . . 1 Tool/Special 1 | . . . 1 Average Slot Usage (%) 86 | . 99 98 38 Engine 10 | . 13 13 . Treads 22 | . 28 27 . Wheel 3 | . . . 16 Device 11 | . 14 12 2 Storage 12 | . 14 13 8 Energy Gun 18 | . 27 13 3 Impact Weapon 5 | . . 14 5 Peak Build Rating 10 | 7 10 9 8 Average Rating 7 | 5 7 7 4 On Entrance 4 | . 7 8 1 Avg Prop Armor Cover (%) . | . . . . Naked Turns . | . . . . Heaviest Build 54 | 15 50 54 43 Greatest Support 40 | 40 40 40 32 Greatest Overweight (x) 3 | . 1 2 3 Average Overweight (x) . | . . 1 1 Largest Inventory Capacity 20 | 8 20 20 20 Average Capacity 15 | 7 14 19 17 Most Carried 9 | 4 8 8 9 Average Carried 6 | 2 6 7 5 Final Capacity 20 | 8 20 5 20 Final Carried 7 | 3 7 5 4 Class Distribution -------------------- 100% | Mutant Dominant Class ---------------- Mutant | -10/Materials Mutant | -10/Mines Mutant | -9/Materials Resources | -11 -10 -10 -9 ----------- Run | Yrd Mat Min Mat Matter Collected 723 | 290 141 133 159 Remotely . | . . . . Salvage Created 811 | 159 258 93 301 Parts 53 | 13 15 . 25 Haulers Intercepted . | . . . . Recyclers Shooed 1 | 1 . . . Parts Field Recycled . | . . . . Retrieved Matter . | . . . . Parts Self-Destructed . | . . . . Prevented . | . . . . Parts Restored . | . . . . Kills | -11 -10 -10 -9 ------- Run | Yrd Mat Min Mat Combat Hostiles Destroyed 18 | . 4 . 14 Guns 9 | . 4 . 5 AOE 9 | . . . 9 Classes Destroyed 8 | 2 2 1 3 Worker 2 | . . 2 . Tunneler 4 | 4 . . . Recycler 2 | 1 . 1 . Watcher 4 | . 3 . 1 Swarmer 3 | . . . 3 Grunt 13 | . 4 . 9 Duelist 1 | . . . 1 Sentry 1 | . . . 1 Best Kill Streak 6 | 4 2 1 6 Combat Bots Only 6 | . 2 . 6 Max Kills in Single Turn 3 | 1 1 1 3 Gunslinging . | . . . . Exploded 3 | . . . 3 Melee . | . . . . Uniques/NPCs Destroyed . | . . . . Combat | -11 -10 -10 -9 -------- Run | Yrd Mat Min Mat Hostile Shots Fired 124 | . 26 22 76 Missed 28 | . 10 1 17 Hits 96 | . 16 21 59 Melee 5 | . . . 5 Projectile 91 | . 16 21 54 AOE 17 | . . 17 . Critical Strikes 5 | . . . 5 Damage Taken 1912 | . 272 786 854 Core 477 | . 22 53 402 Absorbed by Shields . | . . . . Core Remaining (%) 85 | 100 . 70 . Volleys Fired 66 | 11 26 . 29 Largest 2 | 2 2 . 2 Hottest 95 | 80 80 . 95 Shots Fired 105 | 22 52 . 31 Gun 89 | 22 52 . 15 Cannon . | . . . . Launcher 16 | . . . 16 Special . | . . . . Kinetic . | . . . . Thermal 15 | . . . 15 Explosive 16 | . . . 16 Electromagnetic 74 | 22 52 . . Robot Hit Streak 8 | 6 5 . 8 Robot Miss Streak 5 | 2 3 . 5 Penetration Max . | . . . . Secondary Targets . | . . . . Shots Hit Robots 72 | 14 30 3 25 Core Hits 53 | 6 10 . 37 Critical Kills . | . . . . Critical Parts Destroyed . | . . . . Critical Strikes 2 | . 2 . . Corrupt 2 | . 2 . . Melee Attacks 8 | . 2 3 3 Impact 8 | . 2 3 3 Slashing . | . . . . Piercing . | . . . . Sneak Attacks 3 | . . 3 . Combat Hostiles . | . . . . Follow-up Attacks . | . . . . Damage Inflicted 1906 | 196 473 199 1038 Guns 834 | 196 447 . 191 Cannons . | . . . . Explosions 799 | . 26 . 773 Melee 273 | . . 199 74 Ramming . | . . . . Kinetic . | . . . . Thermal 217 | . 26 . 191 Explosive 773 | . . . 773 Electromagnetic 643 | 196 447 . . Impact 273 | . . 199 74 Slashing . | . . . . Piercing . | . . . . Highest Corruption 1 | . 1 1 . Average Corruption 1 | . 1 1 . Corruption Purged . | . . . . Corruption Blocked . | . . . . Effects 8 | . 3 5 . Message Errors 1 | . . 1 . Matter Fused 3 | . 1 2 . Heat Flow Errors 2 | . 1 1 . Energy Discharges 2 | . 1 1 . Overload Shots . | . . . . Overflow Damage 138 | . . 122 16 Projectiles . | . . . . Explosions 16 | . . . 16 Melee 122 | . . 122 . Knockbacks 1 | . . 1 . Impact 1 | . . 1 . Kinetic . | . . . . Secondary . | . . . . Self-Inflicted Damage 68 | . . . 68 Shots 3 | . . . 3 Rammed . | . . . . Targets Rammed . | . . . . Kicked . | . . . . Crushed . | . . . . Highest Temperature 279 | 108 202 279 95 Average Temperature 65 | 46 72 145 37 Received Heat Transfer 351 | . 108 . 243 Siege Activations . | . . . . Martial Activations . | . . . . Shielding Activations . | . . . . Robots Disrupted . | . . . . Combat Hostiles . | . . . . Robots Corrupted 1 | . . 1 . Combat Hostiles . | . . . . Parts Fried 5 | . 3 2 . Impact Corruptions 3 | . . 3 . Robots Melted . | . . . . Combat Hostiles . | . . . . Parts Melted . | . . . . Heat Transferred 290 | . 50 . 240 Parts Sabotaged . | . . . . Parts Stolen . | . . . . Parts Stripped . | . . . . Power Chain Reactions 1 | . 1 . . Alert | -11 -10 -10 -9 ------- Run | Yrd Mat Min Mat Maximum Alert Level 1 | . . . 1 Low Security (%) 97 | 100 100 100 87 Level 1 2 | . . . 12 Level 2 . | . . . . Level 3 . | . . . . Level 4 . | . . . . Level 5 . | . . . . High Security . | . . . . Max Security . | . . . . Peak Influence 301 | 10 52 5 301 Initial 1 | . . 1 . Average 17 | 1 7 . 76 Influence Increases 635 | 25 167 15 428 Destroy 0b10 Robot/C 360 | . 80 . 280 Destroy 0b10 Robot/NC 60 | 25 15 15 5 Destroy Leader 88 | . 36 . 52 Successful Hack 5 | . . . 5 Disable Machine 30 | . 15 . 15 Destroy Structure 62 | . 6 . 56 Partial Spotted 15 | . 15 . . Lose Combat Pursuer 15 | . . . 15 Influence Decreases 344 | 25 162 20 137 Entered New Map 4 | . . 4 . Time Decay 283 | 25 145 11 102 Lost Part 57 | . 17 5 35 Squads Dispatched 4 | . 2 . 2 Investigation . | . . . . Extermination . | . . . . Reinforcement 4 | . 2 . 2 Assault . | . . . . Garrison . | . . . . Intercept . | . . . . Searches Triggered . | . . . . Construction Impeded . | . . . . Haulers Reinforced . | . . . . Active Scanning Responses . | . . . . Cargo Convoy Interrupts . | . . . . Stealth | -11 -10 -10 -9 --------- Run | Yrd Mat Min Mat Distress Signals . | . . . . Communications Jammed . | . . . . Distress Signals . | . . . . Times Spotted 46 | . 9 16 21 Peak Tracking Total 22 | . 2 22 7 Tactical Retreats 2 | . . 1 1 Traps | -11 -10 -10 -9 ------- Run | Yrd Mat Min Mat Traps Triggered 2 | . 2 . . Indirectly . | . . . . Trap Hack Attempts . | . . . . Triggered . | . . . . Disarmed . | . . . . Reprogrammed . | . . . . Reused . | . . . . Traps Extracted . | . . . . Installed . | . . . . Triggered . | . . . . Machines | -11 -10 -10 -9 ---------- Run | Yrd Mat Min Mat Machines Disabled 2 | . 1 . 1 Max in Single Turn 1 | . 1 . 1 Machines Repaired . | . . . . Machines Dismantled . | . . . . Machines Sabotaged . | . . . . Overloaded Fab Kills . | . . . . Hacking | -11 -10 -10 -9 --------- Run | Yrd Mat Min Mat Machines Accessed 1 | . . . 1 Terminals 1 | . . . 1 Fabricators . | . . . . Repair Stations . | . . . . Recycling Units . | . . . . Scanalyzers . | . . . . Garrison Access . | . . . . Total Hacks 2 | . . . 2 Successful 1 | . . . 1 Failed 1 | . . . 1 Catastrophic . | . . . . Database Lockouts . | . . . . Manual 2 | . . . 2 Terminals 2 | . . . 2 Fabricators . | . . . . Repair Stations . | . . . . Recycling Units . | . . . . Scanalyzers . | . . . . Garrison Access . | . . . . Terminal Hacks . | . . . . Fabricator Hacks . | . . . . Repair Station Hacks . | . . . . Recycling Unit Hacks . | . . . . Scanalyzer . | . . . . Garrison Access Hacks . | . . . . Unauthorized Hacks 1 | . . . 1 Terminals 1 | . . . 1 Botnet 1 | . . . 1 Fabricators . | . . . . Repair Stations . | . . . . Recycling Units . | . . . . Scanalyzers . | . . . . Garrison Access . | . . . . Data Cores Recovered . | . . . . Used . | . . . . Hacking Detections . | . . . . Full Trace Events . | . . . . Feedback Events . | . . . . Feedback Blocked . | . . . . Robot Schematics Acquired . | . . . . Robots Built . | . . . . Authchips . | . . . . Time . | . . . . Total Robot Build Rating . | . . . . Part Schematics Acquired . | . . . . Parts Built . | . . . . Authchips . | . . . . Time . | . . . . Total Part Build Rating . | . . . . Part Studies Acquired . | . . . . Parts Repaired . | . . . . Time . | . . . . Parts Recycled . | . . . . Recycled Matter . | . . . . Retrieved Matter . | . . . . Retrieved Components . | . . . . Parts Scanalyzed . | . . . . Part Schematics Acquired . | . . . . Parts Damaged . | . . . . Bothacking | -11 -10 -10 -9 ------------ Run | Yrd Mat Min Mat Used RIF Installer . | . . . . Robots Hacked . | . . . . Non-combat . | . . . . Combat . | . . . . Robot Hacks Applied . | . . . . Relay Couplers Released . | . . . . Fabnet Peak Effective % . | . . . . Robots Rewired . | . . . . Allies Hacked . | . . . . Hacks Repelled . | . . . . Allies | -11 -10 -10 -9 -------- Run | Yrd Mat Min Mat Total Allies . | . . . . Largest Group . | . . . . Highest-Rated Group . | . . . . Highest-Rated Ally . | . . . . Total Orders . | . . . . Ally Attacks . | . . . . Total Damage . | . . . . Kills . | . . . . Allies Corrupted . | . . . . Allies Melted . | . . . . Intel | -11 -10 -10 -9 ------- Run | Yrd Mat Min Mat Active Infowar (turns) 1585 | 122 898 475 90 Seismic 1585 | 122 898 475 90 Robot Analysis Total . | . . . . Derelict Logs Recovered . | . . . . Drone Launches . | . . . . Drone Recoveries . | . . . . Exploration | -11 -10 -10 -9 ------------- Run | Yrd Mat Min Mat Turns Passed 1996 | 216 898 520 362 Spaces Moved 985 | 109 408 212 256 Core 61 | 6 . 3 52 Treads 720 | 103 408 209 . Legs . | . . . . Wheels 204 | . . . 204 Hover . | . . . . Flight . | . . . . Fastest Speed 50 | 50 160 50 50 Average Speed 176 | 153 193 238 107 Slowest Speed 320 | 160 240 320 135 Overloaded Moves . | . . . . Propulsion Burnouts . | . . . . Robots Hopped . | . . . . Potential Cave-ins . | . . . . Cave-ins Triggered . | . . . . Exploration Rate (%) 38 | 5 64 59 24 Regions Visited 3 Branch Regions 1 Pre-discovered Areas 1 | . . 1 . Known Exits Taken . | . . . . Unknown Exits Taken 3 | 1 1 1 . Scrap Searched 2 | . . 2 . Spaces Dug . | . . . . Terrain Destroyed 69 | . 6 . 63 Melee . | . . . . Projectile . | . . . . AOE 69 | . 6 . 63 Terrain Rammed . | . . . . Walls Destroyed . | . . . . Machines Disabled . | . . . . Actions | -11 -10 -10 -9 --------- Run | Yrd Mat Min Mat Total 1121 | 131 463 221 306 Wait 9 | . 9 . . Move 982 | 108 407 211 256 Hop . | . . . . Pick Up 15 | 2 7 1 5 Fast Attach 16 | 7 3 . 6 Attach 11 | . 3 2 6 Detach 2 | . 1 1 . Swap 5 | 2 2 1 . Drop 7 | 1 3 2 1 Fire 66 | 11 26 . 29 Melee 8 | . 2 3 3 Ram . | . . . . Kick . | . . . . Crush . | . . . . Escape Stasis . | . . . . Rewire . | . . . . Trap . | . . . . Miscellaneous . | . . . . Route ------- -11/Scrapyard -10/Materials (discovered 3 exits: *Mat x2 / [*Min]) -10/Mines (discovered 2 exits: *Mat / [*Sub]) -9/Materials (discovered 2 exits: [*Mat] / [*Min]) History --------- Turn | Location | Event 57 | -11/Scrapyard | Discovered new exit (range 15) 217 | -11/Scrapyard | Entered Materials 313 | -10/Materials | Build established: Mutant 487 | -10/Materials | Discovered new exit (range 16) 836 | -10/Materials | Discovered new exit (range 5) 949 | -10/Materials | Discovered new exit (range 9) 1115 | -10/Materials | Entered Mines 1439 | -10/Mines | Learned location of Storage (-9) 1441 | -10/Mines | Discovered new exit (range 3) 1586 | -10/Mines | Assembled infested the area 1591 | -10/Mines | Assisted by a Guerilla fighting off Assembled 1631 | -10/Mines | Discovered new exit (range 10) 1635 | -10/Mines | Entered Materials 1635 | -9/Materials | Evolved 2 slots: Utility x2 1664 | -9/Materials | Lost 7 parts (1p2n2u2w) 1850 | -9/Materials | Core integrity fell below 50% 1880 | -9/Materials | Lost 4 parts (1n1u2w) 1937 | -9/Materials | Discovered new exit (range 8) 1967 | -9/Materials | Discovered new exit (range 15) 1988 | -9/Materials | Core integrity fell below 20% 1997 | -9/Materials | Destroyed by Y-45 Defender with Beam Rifle Last Messages --------------- 01933_ ALERT: Hostiles spotted, dispatching reinforcements to Terminal M008. 01936_ K-01 Serf collects debris. 01937_ EXIT=FOUND 01950_ Spread Laser destroyed. 01951_ G-34 Mercenary destroyed. 01953_ Destroyed Heat Sink. 01956_ The unstable cave ceiling collapses. 01959_ Destroyed Ion Engine. 01959_ G-34 Mercenary destroyed. 01961_ K-01 Serf collects debris. 01963_ G-34 Mercenary destroyed. 01964_ K-01 Serf collects debris. 01967_ Acquired 28 matter. 01967_ EXIT=FOUND 01968_ Acquired 34 matter. 01984_ G-34 Mercenary destroyed. 01986_ Destroyed Heat Sink. 01990_ G-34 Mercenary destroyed. 01995_ The unstable cave ceiling collapses. Map ----- +----------------------------------------------------+ | ???????????????????????????????? | | ???????????????????????????????? | | ???????????????????????????????? | | ???????????????????????????????? | | ???????????????????????????????? | | ???????????????????????????????? | | ???????????????????????????????? | | ???????????????????????????????? | | ???????????????????????????????? | | ???????????????????????????????? | | ???????????????????????????????? | | ???????????????????????????????? | | ???????????????????????????????? | | ???????????????????????????????? | | ???????????????????????????????? | | ???????????????????????????????? | | ???????????????????????#+??????? | | ???????????????????????# #?????? | | ???????????????????????# #?????? | | ???????????? ??##????## ######? | | ???????????? # #### !!#? | | ??????????? Y !!#? | | ??????????+# **#? | | ????????? **#? | | ????????? < !!#? | | ????????? @ !!#? | | ???????????# # ###??? | | ?????????? #????? | | ??????????? # # #????? | | ????????????##???# #????? | | ????????????###### #????? | | ????????????+ #????? | | ????????????######o #????? | | ?????????????????# a #????? | | ?????????????????# #????? | | ?????????????????# ##???? | | ?????????????????# #???? | | ?????########????+ ! #???? | | ?????# +????## ## ###?? | | ?????#""" #?????# ## = !##? | | ?????#""" #######+## !#? | | ?????#""" # # !#? | | ?????# !+ """ """ !#? | | ?????#""" * # """ """ !#? | | ?????#""" =# """ """ !##? | | ?????#""" # ###?? | | ?????# # #???? | | ?????#""" # ???? | | ######""" # ???? | | ##""" ##+##### ##??? | +----------------------------------------------------+ Best States ------------- Heat Dissipation 28 Energy Generation 10 Energy Capacity 250 Matter Stores 300 Matter Capacity 300 Sight Range 16 Terrain Scan Density 10 Armor Coverage 150 Evasion (%) 50 Recoil Reduction 2 Item Schematics ----------------- None Robot Schematics ------------------ None Fabricated ------------ Nothing Repaired ---------- Nothing Studied --------- None Alien Tech Used ----------------- None Achievements -------------- None Challenges ------------ None Game ------ Seed LatentBarrageHammer Manual? 0 Play Time 00:12:42 Cumulative 189.1 hours Start 2026.09.02 @ 14:44:12 End 2026.09.02 @ 14:55:11 Sessions 1 Manual Loads 0 Difficulty Rogue Special Mode None Game No. 377 Rogue 377 Adventurer 0 Explorer 0 Win Type - Total 2 Types 2/0/0/0/0/0/0/0/0/0 Lore% 59 Gallery% 60 Achievement% 47 Wizard Run 0 Options --------- Layout 2 ASCII 0 Keyboard 1 Movement Arrows Keybinds 0 Fullscreen 1 Font 24/Smallcaps Map View 50x44 Zoom Use 0% Tactical HUD 1 Map Filters NONE Filters NONE Steam 1 RUN: 10e2caa3-86eb-47db-9415-ba747e2e0701